Cogmind - Beta 17.1 @@@ ROGUE MODE // 2026.09.19 @ 12:17:41 Player: osman sinnoks Result: Destroyed self with Grenade Launcher Performance ------------- Evolutions (0) 0 Regions Visited (2) 400 Robots Destroyed (38) 190 Value Destroyed (873) 873 Prototype IDs (2) 40 Alien Tech Used (0) 0 Bonus (0) 0 TOTAL SCORE: 1503 Bonus ------- None Cogmind --------- Core Integrity 0/250 Matter 50/300 Energy 250/250 System Corruption 0% Temperature Cool (0) Movement Treading (240) Ox1 Location -10/Subcaves Parts ------- > --- POWER (1) -------- Ion Engine > --- PROPULSION (2) --- Light Treads Light Treads > --- UTILITY (2) ------ High-capacity Storage Unit Light Armor Plating > --- WEAPON (2) ------- Heavy Battle Rifle Grenade Launcher > --- INVENTORY (20) --- Light Ion Engine Subdweller Power Source Light Nuclear Core Light Treads Aluminum Leg Aluminum Leg Heat Sink Medium Matter Pod (100) Sensor Array Targeting Computer Targeting Computer Light Armor Plating Light Armor Plating Hacking Suite Small Laser Subdweller Laser Subdweller Laser Light Assault Rifle Peak State ------------ > --- POWER ------------ Ion Engine > --- PROPULSION ------- Light Treads Light Treads > --- UTILITY ---------- High-capacity Storage Unit Light Armor Plating > --- WEAPON ----------- Heavy Battle Rifle Grenade Launcher > --- INVENTORY -------- Light Ion Engine Subdweller Power Source Light Nuclear Core Light Treads Light Treads Light Treads Aluminum Leg Aluminum Leg Heat Sink Medium Matter Pod Sensor Array Targeting Computer Targeting Computer Light Armor Plating Light Armor Plating Light Armor Plating Hacking Suite Small Laser Light Assault Rifle Grenade Launcher [Rating: 12] Favorites ----------- Power Ion Engine Engine Ion Engine Propulsion Light Treads Treads Light Treads Utility High-capacity Storage Unit Device Seismic Detector Storage High-capacity Storage Unit Protection Light Armor Plating Weapon Light Assault Rifle Ballistic Gun Light Assault Rifle Launcher Grenade Launcher Build | -11 -10 -10 ------- Run | Yrd Mat Sub Slots Evolved . | . . . Power . | . . . Propulsion . | . . . Utility . | . . . Weapon . | . . . Parts Attached 18 | 7 7 4 Power 2 | 1 1 . Engine 2 | 1 1 . Core . | . . . Reactor . | . . . Propulsion 5 | 2 2 1 Treads 5 | 2 2 1 Leg . | . . . Wheel . | . . . Hover . | . . . Flight . | . . . Utility 5 | 2 2 1 Device 1 | 1 . . Storage 2 | 1 1 . Processor . | . . . Hackware . | . . . Protection 2 | . 1 1 Artifact . | . . . Weapon 6 | 2 2 2 Energy Gun . | . . . Energy Cannon . | . . . Ballistic Gun 4 | 2 1 1 Ballistic Cannon . | . . . Launcher 2 | . 1 1 Special Weapon . | . . . Impact Weapon . | . . . Slashing Weapon . | . . . Piercing Weapon . | . . . Special Melee Weapon . | . . . Unidentified Prototypes . | . . . Parts Lost 5 | . 3 2 Power . | . . . Propulsion 1 | . . 1 Utility 1 | . 1 . Weapon 3 | . 2 1 Highest Loss Streak 3 | . 3 2 To Critical Strikes . | . . . Average Backups 15 | 3 14 19 Power 2 | . 2 3 Propulsion 3 | 1 2 4 Utility 6 | . 6 8 Weapon 3 | . 3 3 Tool/Special . | . . . Unused Backups 18 | . . 18 Power 3 | . . 3 Propulsion 3 | . . 3 Utility 8 | . . 8 Weapon 4 | . . 4 Tool/Special . | . . . Average Slot Usage (%) 99 | . 99 99 Engine 14 | . 14 14 Treads 27 | . 28 27 Device 6 | . 8 . Storage 14 | . 14 14 Protection 7 | . 5 14 Ballistic Gun 20 | . 22 14 Launcher 7 | . 5 14 Peak Build Rating 12 | 7 9 12 Average Rating 8 | 5 8 10 On Entrance 5 | . 7 9 Avg Prop Armor Cover (%) . | . . . Naked Turns . | . . . Heaviest Build 55 | 12 52 55 Greatest Support 40 | 40 40 40 Greatest Overweight (x) 1 | . 1 1 Average Overweight (x) . | . . 1 Largest Inventory Capacity 20 | 8 20 20 Average Capacity 17 | 7 17 20 Most Carried 20 | 5 20 20 Average Carried 15 | 3 14 19 Final Capacity 20 | 8 20 20 Final Carried 20 | 4 20 18 Class Distribution -------------------- 100% | Mutant Dominant Class ---------------- Mutant | -10/Materials Mutant | -10/Subcaves Resources | -11 -10 -10 ----------- Run | Yrd Mat Sub Matter Collected 851 | 298 510 43 Remotely . | . . . Salvage Created 1118 | 115 899 104 Parts 66 | 8 48 10 Haulers Intercepted 2 | . 2 . Recyclers Shooed 6 | . 6 . Parts Field Recycled . | . . . Retrieved Matter . | . . . Parts Self-Destructed . | . . . Prevented . | . . . Parts Restored . | . . . Kills | -11 -10 -10 ------- Run | Yrd Mat Sub Combat Hostiles Destroyed 24 | . 17 7 Guns 15 | . 14 1 AOE 9 | . 3 6 Classes Destroyed 10 | 2 7 1 Worker 1 | . 1 . Builder 1 | . 1 . Tunneler 3 | 2 1 . Hauler 2 | . 2 . Recycler 4 | 1 3 . Operator 1 | . 1 . Watcher 2 | . 2 . Swarmer 6 | . 6 . Grunt 11 | . 11 . Subdweller 7 | . . 7 Best Kill Streak 5 | 2 4 5 Combat Bots Only 5 | . 3 5 Max Kills in Single Turn 2 | 2 2 2 Gunslinging . | . . . Exploded 2 | . 1 2 Melee . | . . . Uniques/NPCs Destroyed . | . . . Combat | -11 -10 -10 -------- Run | Yrd Mat Sub Hostile Shots Fired 118 | . 92 26 Missed 34 | . 28 6 Hits 84 | . 64 20 Projectile 84 | . 64 20 Critical Strikes 4 | . 4 . Damage Taken 1235 | . 725 510 Core 252 | . 110 142 Absorbed by Shields . | . . . Core Remaining (%) 100 | 100 . . Volleys Fired 111 | 7 76 28 Largest 2 | 2 2 2 Hottest 63 | 40 50 63 Shots Fired 206 | 14 152 40 Gun 178 | 14 143 21 Cannon . | . . . Launcher 28 | . 9 19 Special . | . . . Kinetic 178 | 14 143 21 Thermal . | . . . Explosive 28 | . 9 19 Electromagnetic . | . . . Robot Hit Streak 21 | 3 14 21 Robot Miss Streak 7 | 2 7 1 Penetration Max . | . . . Secondary Targets 2 | . 2 . Max Gunslinging Chain 1 | . 1 . Shots Hit Robots 132 | 9 97 26 Core Hits 70 | 5 47 18 Critical Kills 2 | . 2 . Critical Parts Destroyed 2 | . 2 . Critical Strikes 4 | . 4 . Destroy 4 | . 4 . Melee Attacks . | . . . Impact . | . . . Slashing . | . . . Piercing . | . . . Sneak Attacks . | . . . Combat Hostiles . | . . . Follow-up Attacks . | . . . Damage Inflicted 2644 | 104 1382 1158 Guns 1394 | 104 963 327 Cannons . | . . . Explosions 1230 | . 399 831 Melee . | . . . Ramming 20 | . 20 . Kinetic 1394 | 104 963 327 Thermal . | . . . Explosive 1230 | . 399 831 Electromagnetic . | . . . Impact . | . . . Slashing . | . . . Piercing . | . . . Highest Corruption . | . . . Average Corruption . | . . . Corruption Purged . | . . . Corruption Blocked . | . . . Overload Shots . | . . . Overflow Damage . | . . . Projectiles . | . . . Explosions . | . . . Melee . | . . . Knockbacks . | . . . Impact . | . . . Kinetic . | . . . Secondary . | . . . Self-Inflicted Damage 109 | . 32 77 Shots 6 | . 2 4 Rammed 5 | . 5 . Targets Rammed 5 | . 5 . Kicked . | . . . Crushed . | . . . Highest Temperature 57 | . 57 . Average Temperature 20 | . 20 . Received Heat Transfer 360 | . 354 6 Siege Activations . | . . . Martial Activations . | . . . Shielding Activations . | . . . Robots Disrupted . | . . . Combat Hostiles . | . . . Robots Corrupted . | . . . Combat Hostiles . | . . . Parts Fried . | . . . Impact Corruptions . | . . . Robots Melted . | . . . Combat Hostiles . | . . . Parts Melted . | . . . Heat Transferred . | . . . Parts Sabotaged . | . . . Parts Stolen . | . . . Parts Stripped . | . . . Power Chain Reactions . | . . . Alert | -11 -10 -10 ------- Run | Yrd Mat Sub Maximum Alert Level . | . . . Low Security (%) 100 | 100 100 . Level 1 . | . . . Level 2 . | . . . Level 3 . | . . . Level 4 . | . . . Level 5 . | . . . High Security . | . . . Max Security . | . . . Peak Influence 161 | 10 161 . Initial . | . . . Average 51 | . 56 . Influence Increases 586 | 15 571 . Destroy 0b10 Robot/C 340 | . 340 . Destroy 0b10 Robot/NC 70 | 15 55 . Destroy Leader 68 | . 68 . Disable Machine 45 | . 45 . Destroy Structure 48 | . 48 . Lose Combat Pursuer 15 | . 15 . Influence Decreases 586 | 15 465 106 Entered New Map 52 | . . 52 Time Decay 504 | 15 435 54 Lost Part 30 | . 30 . Squads Dispatched 2 | . 2 . Investigation 1 | . 1 . Extermination . | . . . Reinforcement 1 | . 1 . Assault . | . . . Garrison . | . . . Intercept . | . . . Searches Triggered . | . . . Construction Impeded . | . . . Haulers Reinforced . | . . . Active Scanning Responses . | . . . Cargo Convoy Interrupts . | . . . Stealth | -11 -10 -10 --------- Run | Yrd Mat Sub Distress Signals 1 | . 1 . Communications Jammed . | . . . Distress Signals . | . . . Times Spotted 30 | . 23 7 Peak Tracking Total 4 | . 4 4 Tactical Retreats 1 | . 1 . Traps | -11 -10 -10 ------- Run | Yrd Mat Sub Traps Triggered 1 | . 1 . Indirectly . | . . . Trap Hack Attempts . | . . . Triggered . | . . . Disarmed . | . . . Reprogrammed . | . . . Reused . | . . . Traps Extracted . | . . . Installed . | . . . Triggered . | . . . Machines | -11 -10 -10 ---------- Run | Yrd Mat Sub Machines Disabled 3 | . 3 . Max in Single Turn 1 | . 1 . Machines Repaired . | . . . Machines Dismantled . | . . . Machines Sabotaged . | . . . Overloaded Fab Kills . | . . . Hacking | -11 -10 -10 --------- Run | Yrd Mat Sub Machines Accessed 2 | . 2 . Terminals 2 | . 2 . Fabricators . | . . . Repair Stations . | . . . Recycling Units . | . . . Scanalyzers . | . . . Garrison Access . | . . . Total Hacks 7 | . 7 . Successful 3 | . 3 . Failed 4 | . 4 . Catastrophic 1 | . 1 . Database Lockouts . | . . . Manual 3 | . 3 . Terminals 7 | . 7 . Fabricators . | . . . Repair Stations . | . . . Recycling Units . | . . . Scanalyzers . | . . . Garrison Access . | . . . Terminal Hacks 3 | . 3 . Prototype ID Bank 1 | . 1 . Alert Level 1 | . 1 . Hauler Manifests 1 | . 1 . Fabricator Hacks . | . . . Repair Station Hacks . | . . . Recycling Unit Hacks . | . . . Scanalyzer . | . . . Garrison Access Hacks . | . . . Unauthorized Hacks . | . . . Terminals . | . . . Fabricators . | . . . Repair Stations . | . . . Recycling Units . | . . . Scanalyzers . | . . . Garrison Access . | . . . Data Cores Recovered . | . . . Used . | . . . Hacking Detections 2 | . 2 . Full Trace Events . | . . . Feedback Events . | . . . Feedback Blocked . | . . . Robot Schematics Acquired . | . . . Robots Built . | . . . Authchips . | . . . Time . | . . . Total Robot Build Rating . | . . . Part Schematics Acquired . | . . . Parts Built . | . . . Authchips . | . . . Time . | . . . Total Part Build Rating . | . . . Part Studies Acquired . | . . . Parts Repaired . | . . . Time . | . . . Parts Recycled . | . . . Recycled Matter . | . . . Retrieved Matter . | . . . Retrieved Components . | . . . Parts Scanalyzed . | . . . Part Schematics Acquired . | . . . Parts Damaged . | . . . Bothacking | -11 -10 -10 ------------ Run | Yrd Mat Sub Used RIF Installer . | . . . Robots Hacked . | . . . Non-combat . | . . . Combat . | . . . Robot Hacks Applied . | . . . Relay Couplers Released . | . . . Fabnet Peak Effective % . | . . . Robots Rewired . | . . . Allies Hacked . | . . . Hacks Repelled . | . . . Allies | -11 -10 -10 -------- Run | Yrd Mat Sub Total Allies . | . . . Largest Group . | . . . Highest-Rated Group . | . . . Highest-Rated Ally . | . . . Total Orders . | . . . Ally Attacks . | . . . Total Damage . | . . . Kills . | . . . Allies Corrupted . | . . . Allies Melted . | . . . Intel | -11 -10 -10 ------- Run | Yrd Mat Sub Active Infowar (turns) 1361 | 108 1253 . Seismic 1361 | 108 1253 . Robot Analysis Total . | . . . Derelict Logs Recovered . | . . . Drone Launches . | . . . Drone Recoveries . | . . . Exploration | -11 -10 -10 ------------- Run | Yrd Mat Sub Turns Passed 3074 | 209 2022 843 Spaces Moved 1234 | 118 797 319 Core 15 | 15 . . Treads 1219 | 103 797 319 Legs . | . . . Wheels . | . . . Hover . | . . . Flight . | . . . Fastest Speed 50 | 50 160 240 Average Speed 218 | 146 220 240 Slowest Speed 240 | 160 240 240 Overloaded Moves . | . . . Propulsion Burnouts . | . . . Robots Hopped . | . . . Potential Cave-ins . | . . . Cave-ins Triggered . | . . . Exploration Rate (%) 42 | 4 93 31 Regions Visited 2 Branch Regions 1 Pre-discovered Areas . | . . . Known Exits Taken . | . . . Unknown Exits Taken 2 | 1 1 . Scrap Searched . | . . . Spaces Dug . | . . . Terrain Destroyed 131 | . 48 83 Melee . | . . . Projectile 1 | . . 1 AOE 130 | . 48 82 Terrain Rammed . | . . . Walls Destroyed . | . . . Machines Disabled . | . . . Actions | -11 -10 -10 --------- Run | Yrd Mat Sub Total 1421 | 142 920 359 Wait 14 | . 14 . Move 1232 | 117 796 319 Hop . | . . . Pick Up 33 | 11 19 3 Fast Attach . | . . . Attach 12 | 7 3 2 Detach . | . . . Swap 7 | . 4 3 Drop 7 | . 3 4 Fire 111 | 7 76 28 Melee . | . . . Ram . | . . . Kick . | . . . Crush 5 | . 5 . Escape Stasis . | . . . Rewire . | . . . Trap . | . . . Miscellaneous . | . . . Route ------- -11/Scrapyard -10/Materials (discovered 5 exits: [*Mat x2] / [*Min x2] / [*Sub]) -10/Subcaves History --------- Turn | Location | Event 5 | -11/Scrapyard | Discovered new exit (range 14) 210 | -11/Scrapyard | Entered Materials 306 | -10/Materials | Build established: Mutant 391 | -10/Materials | Discovered new exit (range 16) 1505 | -10/Materials | Discovered new exit (range 16) 1507 | -10/Materials | Lost 3 parts (1u2w) 1563 | -10/Materials | Discovered new exit (range 6) 1917 | -10/Materials | Discovered new exit (range 6) 2215 | -10/Materials | Discovered new exit (range 7) 2232 | -10/Materials | Entered Subcaves 2502 | -10/Subcaves | Shifting Twisted Machinery released Hvy. Battle Rifle 2505 | -10/Subcaves | Shifting Twisted Machinery released Riot Gun 2549 | -10/Subcaves | Ambushed by Subdweller buried in earth 2704 | -10/Subcaves | Core integrity fell below 50% 2774 | -10/Subcaves | Core integrity fell below 20% 2775 | -10/Subcaves | Ambushed by Subdweller buried in earth 2775 | -10/Subcaves | Ambushed by Subdweller buried in earth 3075 | -10/Subcaves | Destroyed self with Grenade Launcher Last Messages --------------- 02776_ PM-27E(R): "ARGHSUB!" 02776_ G4-3F7(R): "ARGHSUB!" 02778_ Destroyed Scrap Shield. 02778_ LR-WYP(R) destroyed. 02781_ G4-3F7(R) destroyed. 02781_ LG-WRE(R) destroyed. 02782_ Subatomizers dissect the Sub. Monowheel. 02784_ PM-27E(R) destroyed. 02792_ The unstable cave ceiling collapses. 02792_ Scrap Shield Fragment crushed. 02792_ Acquired 8 matter. 02797_ Acquired Sub. Laser. 02798_ Acquired 4 matter. 02807_ Dropped Lgt. Armor Plating. 02808_ Subatomizers dissect the Sub. Power Source. 02815_ The unstable cave ceiling collapses. 02819_ Subatomizers dissect the Sub. Power Source, destroying it. 03002_ The unstable cave ceiling collapses. Map ----- +----------------------------------------------------+ | ???????# ## & #???????? ###????# ##?? | | ????????#" "" # #???????? #?????## #?? | | ????????##"" # #???????? ?????# ##?? | | ?????????#"""" ###?????? ??##### ####??? | | ?????????# """ "" #?????? ???# ## ##???### | | ?????????#" " "#????????????# ##### # | | ?????????## """"#????????????# #? | | ###?????## # """""#???????????## #? | | ##????# #& *""""""#????????????## ## #? | | #????#####& """""??????????????# ### ""##? | | ###???## & # "##"#######????????## ##?## ### | | #???# & # " #?## """##????????####??# # | | ##??# #"##?# ?????????????###"" # | | #### "" # #??# "????????????##""" ! | | # ##?## ""????????????#""""" = | | ## # # ### # #???????? ???# """ | | "" """ #??????? """?## """" | | """ # #????????"" ####" | | """ ####?????# ##?#[" | | ### # ""#####?# ###" | | #?## ### ## ## | | ##??####?######"" | | ## #?????????????##" ## # """"""""" | | ## #?????????????#"" ## ## ""###""" ##[ | | ####???????? ###" ## ?# #??? ?# | | #??????????? "" @#?# # ### | | #??????????? "" ## #?## ####?# | | #???????????? "" ###????## ###?# | | ##???????????????# ""##????????# ####???## ### | | ?????????????????####???????????#####???????###??# | | ?????????????????????????????????????????????????? | | ?????????????????????????????????????????????????? | | ?????????????????????????????????????????????????? | | ?????????????????????????????????????????????????? | | ?????????????????????????????????????????????????? | | ?????????????????????????????????????????????????? | | ?????????????????????????????????????????????????? | | ?????????????????????????????????????????????????? | | ?????????????????????????????????????????????????? | | ?????????????????????????????????????????????????? | | ?????????????????????????????????????????????????? | | ?????????????????????????????????????????????????? | | ?????????????????????????????????????????????????? | | ?????????????????????????????????????????????????? | | | | | | | | | | | | | +----------------------------------------------------+ Best States ------------- Heat Dissipation 25 Energy Generation 10 Energy Capacity 250 Matter Stores 300 Matter Capacity 300 Sight Range 16 Terrain Scan Density 10 Armor Coverage 150 Evasion (%) 50 Recoil Reduction 2 Item Schematics ----------------- None Robot Schematics ------------------ None Fabricated ------------ Nothing Repaired ---------- Nothing Studied --------- None Alien Tech Used ----------------- None Achievements -------------- None Challenges ------------ None Game ------ Seed GunSubatomicFirepult Manual? 0 Play Time 00:14:49 Cumulative 74.6 hours Start 2026.09.19 @ 12:04:44 End 2026.09.19 @ 12:17:41 Sessions 1 Manual Loads 0 Difficulty Rogue Special Mode None Game No. 129 Rogue 129 Adventurer 0 Explorer 0 Win Type - Total 1 Types 1/0/0/0/0/0/0/0/0/0 Lore% 35 Gallery% 39 Achievement% 34 Wizard Run 0 Options --------- Layout 2 ASCII 0 Keyboard 0 Movement Mouse Keybinds 0 Fullscreen 1 Font 48/Smallcaps Map View 50x44 Zoom Use 0% Tactical HUD 1 Map Filters NONE Filters NONE Steam 1 RUN: fa67cf27-8e7f-41d9-9cce-a19f5622bf34